{"text_format":"1","workbook":"xlsx","n_sheets":4,"sheets":["Actual","Propuesto","Sheet3","Sheet2"],"not_rendered":{"charts":0,"images":7,"macros":1,"external_links":0,"defined_names":4,"comments":0,"pivot_tables":0},"unopened":[],"bounds":{"document_bytes":16777216,"sheet_cells":100000,"rows_first":2000,"rows_last":500,"rows_between":2000,"halvings":0,"cell_chars":16384,"cell_head_chars":4096},"cells_cut":0,"cells_raw":0,"read":"whole","date_system":"1900"}

{"sheet":"Actual","index":0,"n_rows":75,"n_cols":26,"rows_kept":75,"cut":false,"hidden":false,"merged":[[1,8,1,9],[46,2,46,7],[39,2,39,7],[40,2,40,7],[41,2,41,7],[42,2,42,7],[35,2,35,7],[36,2,36,7],[37,2,37,7],[38,2,38,7],[26,2,26,7],[22,2,22,7],[14,2,14,7],[18,2,18,7],[24,2,24,7],[15,2,15,7],[53,7,53,9],[54,7,58,9],[47,2,47,7],[49,2,49,7],[50,2,50,7],[51,0,51,8],[48,2,48,7],[58,5,58,6],[55,0,55,3],[55,5,55,6],[56,5,56,6],[57,5,57,6],[54,0,54,3],[53,5,53,6],[56,0,56,3],[57,0,57,3],[30,2,30,7],[52,0,52,9],[31,2,31,7],[32,2,32,7],[43,2,43,7],[44,2,44,7],[45,2,45,7],[33,2,33,7],[34,2,34,7],[12,2,12,7],[9,0,9,9],[27,2,27,7],[28,2,28,7],[29,2,29,7],[16,2,16,7],[17,2,17,7],[19,2,19,7],[20,2,20,7],[21,2,21,7],[64,0,64,3],[2,0,2,9],[3,0,3,9],[7,7,7,9],[5,0,6,6],[8,0,8,3],[4,0,4,9],[5,7,5,9],[8,7,8,9],[7,4,7,6],[8,4,8,6],[13,2,13,7],[10,2,10,7],[25,2,25,7],[23,2,23,7],[11,2,11,7],[58,0,58,3],[62,0,62,3],[59,5,59,6],[54,5,54,6],[63,0,63,3],[60,0,60,16383],[70,0,70,16383],[71,0,71,16383],[73,0,73,8],[74,0,74,8],[59,7,59,8],[72,0,72,9],[69,0,69,16383],[62,5,62,8],[63,5,63,8],[64,5,64,8],[66,0,66,9],[68,0,68,4],[68,5,68,6],[68,7,68,9],[65,0,65,3],[65,5,65,8]]}
[null,null,null,null,null,null,null,null,null,null,null,null,null,null,null,null,null,null,null,null,null,null,null,null,null,"FORMULARIO INVALIDO!! IMPRIMIR USANDO EL BOTON EN LA PARTE SUPERIOR DEL FORMULARIO"]
[]
[]
["PAGO DE TASAS / FORMULARIO DE DETALLE DE SERVICIOS"]
["DATOS DEL SOLICITANTE"]
[null,null,null,null,null,null,null,"Tipo de Identificación:"]
[null,null,null,null,null,null,null,null,"   Cédula /          Pasaporte /           RNC"]
["Teléfono:",null,null,null,"Dirección Electrónica:",null,null,"Número de Identificación:"]
["(          )             -                         "]
["DETALLE DE LOS SERVICIOS SOLICITADOS"]
["Cantidad","Cod.","Servicio",null,null,null,null,null,"Tasa (RD$)","Monto a Pagar (Cantidad x Tasa)"]
[null,"001","Expedición de Duplicado por Pérdida del Anterior (PRIMERA SOLICITUD).",null,null,null,null,null,4000,{"$f":"A12*I12","v":0}]
[null,"002","Expedición de Duplicado por Pérdida del Anterior (SOLICITUDES POSTERIORES).",null,null,null,null,null,6500,{"$f":"A13*I13","v":0}]
[null,"003","Expedición de Certificación con Reserva de Prioridad.","Expedición de Certificación con Reserva de Prioridad.","Expedición de Certificación con Reserva de Prioridad.","Expedición de Certificación con Reserva de Prioridad.","Expedición de Certificación con Reserva de Prioridad.","Expedición de Certificación con Reserva de Prioridad.",5000,0]
[null,"004","Expedición de Certificación de Estatus Jurídico y Certificación de Inscripción.","Expedición de Certificación de Estatus Jurídico y Certificación de Inscripción.","Expedición de Certificación de Estatus Jurídico y Certificación de Inscripción.","Expedición de Certificación de Estatus Jurídico y Certificación de Inscripción.","Expedición de Certificación de Estatus Jurídico y Certificación de Inscripción.","Expedición de Certificación de Estatus Jurídico y Certificación de Inscripción.",1000]
[null,"005","Expedición de Certificación de Derechos Reales Accesorios.","Expedición de Certificación de Derechos Reales Accesorios.","Expedición de Certificación de Derechos Reales Accesorios.","Expedición de Certificación de Derechos Reales Accesorios.","Expedición de Certificación de Derechos Reales Accesorios.","Expedición de Certificación de Derechos Reales Accesorios.",400,0]
[null,"006","Expedición de Certificación de Registro de Acreedores, (PRIMERA SOLICITUD).","Expedición de Certificación de Registro de Acreedores, (PRIMERA SOLICITUD).","Expedición de Certificación de Registro de Acreedores, (PRIMERA SOLICITUD).","Expedición de Certificación de Registro de Acreedores, (PRIMERA SOLICITUD).","Expedición de Certificación de Registro de Acreedores, (PRIMERA SOLICITUD).","Expedición de Certificación de Registro de Acreedores, (PRIMERA SOLICITUD).",1000,0]
[null,"007","Expedición de Certificación de Registro de Acreedores, (SOLICITUDES POSTERIORES).","Expedición de Certificación de Registro de Acreedores, (SOLICITUDES POSTERIORES).","Expedición de Certificación de Registro de Acreedores, (SOLICITUDES POSTERIORES).","Expedición de Certificación de Registro de Acreedores, (SOLICITUDES POSTERIORES).","Expedición de Certificación de Registro de Acreedores, (SOLICITUDES POSTERIORES).","Expedición de Certificación de Registro de Acreedores, (SOLICITUDES POSTERIORES).",4000,0]
[null,"008","Uso de Datos para Georreferenciación / REP, por cada designación catastral resultante involucrada en el expediente.","Uso de Datos para Georreferenciación / REP, por cada designación catastral resultante involucrada en el expediente.","Uso de Datos para Georreferenciación / REP, por cada designación catastral resultante involucrada en el expediente.","Uso de Datos para Georreferenciación / REP, por cada designación catastral resultante involucrada en el expediente.","Uso de Datos para Georreferenciación / REP, por cada designación catastral resultante involucrada en el expediente.","Uso de Datos para Georreferenciación / REP, por cada designación catastral resultante involucrada en el expediente.",1000,0]
[null,"009","Certificación de Derechos de Propiedad Vigentes.","Certificación de Derechos de Propiedad Vigentes.","Certificación de Derechos de Propiedad Vigentes.","Certificación de Derechos de Propiedad Vigentes.","Certificación de Derechos de Propiedad Vigentes.","Certificación de Derechos de Propiedad Vigentes.",4000,0]
[null,"010","Certificación para Actualización Parcelaria y Registral.","Certificación para Actualización Parcelaria y Registral.","Certificación para Actualización Parcelaria y Registral.","Certificación para Actualización Parcelaria y Registral.","Certificación para Actualización Parcelaria y Registral.","Certificación para Actualización Parcelaria y Registral.",4000]
[null,"011","Inspección.","Inspección.","Inspección.","Inspección.","Inspección.","Inspección.",3000]
[null,"012","Representación Digital de Parcelas Históricas  (por parcela o plano).","Representación Digital de Parcelas Históricas  (por parcela o plano).","Representación Digital de Parcelas Históricas  (por parcela o plano).","Representación Digital de Parcelas Históricas  (por parcela o plano).","Representación Digital de Parcelas Históricas  (por parcela o plano).","Representación Digital de Parcelas Históricas  (por parcela o plano).",500]
[null,"013","Impresión documentos Unidad de Consultas (por cada plano 24” x 36”)  (De 1 a 3 planos 11” x 17”) (De 1 a 10 págs. o planos 8 ½” x11”).","Impresión documentos Unidad de Consultas (por cada plano 24” x 36”)  (De 1 a 3 planos 11” x 17”) (De 1 a 10 págs. o planos 8 ½” x11”).","Impresión documentos Unidad de Consultas (por cada plano 24” x 36”)  (De 1 a 3 planos 11” x 17”) (De 1 a 10 págs. o planos 8 ½” x11”).","Impresión documentos Unidad de Consultas (por cada plano 24” x 36”)  (De 1 a 3 planos 11” x 17”) (De 1 a 10 págs. o planos 8 ½” x11”).","Impresión documentos Unidad de Consultas (por cada plano 24” x 36”)  (De 1 a 3 planos 11” x 17”) (De 1 a 10 págs. o planos 8 ½” x11”).","Impresión documentos Unidad de Consultas (por cada plano 24” x 36”)  (De 1 a 3 planos 11” x 17”) (De 1 a 10 págs. o planos 8 ½” x11”).",100]
[null,"014","Entrega de Copias Digitales en Unidad de Consultas (por documento o expediente; aplica para planos).","Entrega de Copias Digitales en Unidad de Consultas (por documento o expediente; aplica para planos).","Entrega de Copias Digitales en Unidad de Consultas (por documento o expediente; aplica para planos).","Entrega de Copias Digitales en Unidad de Consultas (por documento o expediente; aplica para planos).","Entrega de Copias Digitales en Unidad de Consultas (por documento o expediente; aplica para planos).","Entrega de Copias Digitales en Unidad de Consultas (por documento o expediente; aplica para planos).",400]
[null,"015","Depósito Remoto (Distrito Nacional-Santo Domingo).","Depósito Remoto (Distrito Nacional-Santo Domingo).","Depósito Remoto (Distrito Nacional-Santo Domingo).","Depósito Remoto (Distrito Nacional-Santo Domingo).","Depósito Remoto (Distrito Nacional-Santo Domingo).","Depósito Remoto (Distrito Nacional-Santo Domingo).",300]
[null,"016","Depósito Remoto (Distrito Nacional-Localidades).","Depósito Remoto (Distrito Nacional-Localidades).","Depósito Remoto (Distrito Nacional-Localidades).","Depósito Remoto (Distrito Nacional-Localidades).","Depósito Remoto (Distrito Nacional-Localidades).","Depósito Remoto (Distrito Nacional-Localidades).",800]
[null,"017","Depósito Ingresos JI/Completivo pago de tasa.","Depósito Ingresos JI/Completivo pago de tasa.","Depósito Ingresos JI/Completivo pago de tasa.","Depósito Ingresos JI/Completivo pago de tasa.","Depósito Ingresos JI/Completivo pago de tasa.","Depósito Ingresos JI/Completivo pago de tasa.","(Tasa libre)"]
[null,"018","Otras Actuaciones de Registro de Títulos:","Otras Actuaciones de Registro de Títulos:","Otras Actuaciones de Registro de Títulos:","Otras Actuaciones de Registro de Títulos:","Otras Actuaciones de Registro de Títulos:","Otras Actuaciones de Registro de Títulos:"]
[null,"018","1.        Cancelación Hipoteca Convencional.","1.        Cancelación Hipoteca Convencional.","1.        Cancelación Hipoteca Convencional.","1.        Cancelación Hipoteca Convencional.","1.        Cancelación Hipoteca Convencional.","1.        Cancelación Hipoteca Convencional.",1000]
[null,"018","2.        Consolidación de Constancias Anotadas.","2.        Consolidación de Constancias Anotadas.","2.        Consolidación de Constancias Anotadas.","2.        Consolidación de Constancias Anotadas.","2.        Consolidación de Constancias Anotadas.","2.        Consolidación de Constancias Anotadas.",1000]
[null,"018","3.        Aporte en Naturaleza a Sociedades, Empresas o Entidades.","3.        Aporte en Naturaleza a Sociedades, Empresas o Entidades.","3.        Aporte en Naturaleza a Sociedades, Empresas o Entidades.","3.        Aporte en Naturaleza a Sociedades, Empresas o Entidades.","3.        Aporte en Naturaleza a Sociedades, Empresas o Entidades.","3.        Aporte en Naturaleza a Sociedades, Empresas o Entidades.",1000]
[null,"018","4.        Mandamiento de Pago en virtud de La Ley 6186.","4.        Mandamiento de Pago en virtud de La Ley 6186.","4.        Mandamiento de Pago en virtud de La Ley 6186.","4.        Mandamiento de Pago en virtud de La Ley 6186.","4.        Mandamiento de Pago en virtud de La Ley 6186.","4.        Mandamiento de Pago en virtud de La Ley 6186.",1000]
[null,"018","5.        Mandamiento de Pago.","5.        Mandamiento de Pago.","5.        Mandamiento de Pago.","5.        Mandamiento de Pago.","5.        Mandamiento de Pago.","5.        Mandamiento de Pago.",1000]
[null,"018","6.        Hipoteca Judicial Provisional.","6.        Hipoteca Judicial Provisional.","6.        Hipoteca Judicial Provisional.","6.        Hipoteca Judicial Provisional.","6.        Hipoteca Judicial Provisional.","6.        Hipoteca Judicial Provisional.",1000]
[null,"018","7.        Servidumbre que afecta parte de un Inmueble.","7.        Servidumbre que afecta parte de un Inmueble.","7.        Servidumbre que afecta parte de un Inmueble.","7.        Servidumbre que afecta parte de un Inmueble.","7.        Servidumbre que afecta parte de un Inmueble.","7.        Servidumbre que afecta parte de un Inmueble.",1000]
[null,"018","8.        Anotación Preventiva.","8.        Anotación Preventiva.","8.        Anotación Preventiva.","8.        Anotación Preventiva.","8.        Anotación Preventiva.","8.        Anotación Preventiva.",1000]
[null,"018","9.        Adjudicación.","9.        Adjudicación.","9.        Adjudicación.","9.        Adjudicación.","9.        Adjudicación.","9.        Adjudicación.",1000]
[null,"018","10.     Mandamiento de Pago en virtud de La Ley 189-11.","10.     Mandamiento de Pago en virtud de La Ley 189-11.","10.     Mandamiento de Pago en virtud de La Ley 189-11.","10.     Mandamiento de Pago en virtud de La Ley 189-11.","10.     Mandamiento de Pago en virtud de La Ley 189-11.","10.     Mandamiento de Pago en virtud de La Ley 189-11.",1000]
[null,"018","11.     Cancelación de Embargo.","11.     Cancelación de Embargo.","11.     Cancelación de Embargo.","11.     Cancelación de Embargo.","11.     Cancelación de Embargo.","11.     Cancelación de Embargo.",1000]
[null,"018","12.     Hipoteca Legal de la Mujer Casada.","12.     Hipoteca Legal de la Mujer Casada.","12.     Hipoteca Legal de la Mujer Casada.","12.     Hipoteca Legal de la Mujer Casada.","12.     Hipoteca Legal de la Mujer Casada.","12.     Hipoteca Legal de la Mujer Casada.",1000]
[null,"018","13.     Constitución de Régimen de Condominio y de Condominios en Fases o Etapas.","13.     Constitución de Régimen de Condominio y de Condominios en Fases o Etapas.","13.     Constitución de Régimen de Condominio y de Condominios en Fases o Etapas.","13.     Constitución de Régimen de Condominio y de Condominios en Fases o Etapas.","13.     Constitución de Régimen de Condominio y de Condominios en Fases o Etapas.","13.     Constitución de Régimen de Condominio y de Condominios en Fases o Etapas.",1000]
[null,"018","14.     Modificación del Régimen de Condominio y de Condominios en Fases o Etapas.","14.     Modificación del Régimen de Condominio y de Condominios en Fases o Etapas.","14.     Modificación del Régimen de Condominio y de Condominios en Fases o Etapas.","14.     Modificación del Régimen de Condominio y de Condominios en Fases o Etapas.","14.     Modificación del Régimen de Condominio y de Condominios en Fases o Etapas.","14.     Modificación del Régimen de Condominio y de Condominios en Fases o Etapas.",1000]
[null,"018","15.     Cambio de Denominación o Transformación Social.","15.     Cambio de Denominación o Transformación Social.","15.     Cambio de Denominación o Transformación Social.","15.     Cambio de Denominación o Transformación Social.","15.     Cambio de Denominación o Transformación Social.","15.     Cambio de Denominación o Transformación Social.",1000]
[null,"018","16.     Cancelación de Anotación Preventiva.","16.     Cancelación de Anotación Preventiva.","16.     Cancelación de Anotación Preventiva.","16.     Cancelación de Anotación Preventiva.","16.     Cancelación de Anotación Preventiva.","16.     Cancelación de Anotación Preventiva.",1000]
[null,"018","17.     Disolución o Extinción del Régimen de Condominio y de Condominios en Fases o Etapas.","17.     Disolución o Extinción del Régimen de Condominio y de Condominios en Fases o Etapas.","17.     Disolución o Extinción del Régimen de Condominio y de Condominios en Fases o Etapas.","17.     Disolución o Extinción del Régimen de Condominio y de Condominios en Fases o Etapas.","17.     Disolución o Extinción del Régimen de Condominio y de Condominios en Fases o Etapas.","17.     Disolución o Extinción del Régimen de Condominio y de Condominios en Fases o Etapas.",1000]
[null,"018","18.     Cancelación de la Hipoteca Legal de la Mujer Casada.","18.     Cancelación de la Hipoteca Legal de la Mujer Casada.","18.     Cancelación de la Hipoteca Legal de la Mujer Casada.","18.     Cancelación de la Hipoteca Legal de la Mujer Casada.","18.     Cancelación de la Hipoteca Legal de la Mujer Casada.","18.     Cancelación de la Hipoteca Legal de la Mujer Casada.",1000]
[null,"018","19.     Canje Registral.","19.     Canje Registral.","19.     Canje Registral.","19.     Canje Registral.","19.     Canje Registral.","19.     Canje Registral.",1000]
[null,"018","20.     Hipoteca sobre Derecho de Mejoras.","20.     Hipoteca sobre Derecho de Mejoras.","20.     Hipoteca sobre Derecho de Mejoras.","20.     Hipoteca sobre Derecho de Mejoras.","20.     Hipoteca sobre Derecho de Mejoras.","20.     Hipoteca sobre Derecho de Mejoras.",1000]
[null,"018","21.     Rectificación de Registros Relativos al Estado Civil.","21.     Rectificación de Registros Relativos al Estado Civil.","21.     Rectificación de Registros Relativos al Estado Civil.","21.     Rectificación de Registros Relativos al Estado Civil.","21.     Rectificación de Registros Relativos al Estado Civil.","21.     Rectificación de Registros Relativos al Estado Civil.",1000]
[null,"018","22.     Transferencia de Mejoras.","22.     Transferencia de Mejoras.","22.     Transferencia de Mejoras.","22.     Transferencia de Mejoras.","22.     Transferencia de Mejoras.","22.     Transferencia de Mejoras.",1000]
["MONTO TOTAL A PAGAR",null,null,null,null,null,null,null,null,{"$f":"SUM(J12:J51)","v":0}]
["DETALLE DE LOS PAGOS ANEXOS"]
["Número Comprobantes(s) de Pago",null,null,null,"Cheque Certificado/ Adm (Número y Banco)","Monto Pagado",null,"Detalles para el Pago"]
[null,null,null,null,null,null,null,"Favor realizar los pagos de tasa por servicios de la Jurisdicción Inmobiliaria a través del Banco de Reservas."]
[]
[null,null,null,null,null,null,null,null,null,null,null,null,{"$f":"IF(A55<>\"\",1,0)","v":0}]
[null,null,null,null,null,null,null,null,null,null,null,null,null,"010-251501-8"]
[null,null,null,null,null,null,null,null,null,null,null,null,{"$f":"IF(A57<>\"\",1,0)","v":0}]
[null,null,null,null,"MONTO TOTAL PAGADO",{"$f":"SUM(F55:F59)","v":0},null,"CANTIDAD DE PAGOS",null,{"$f":"COUNT(F55:G59)","v":0},null,null,{"$f":"IF(A58<>\"\",1,0)","v":0}]
["DATOS RECIBOS DGII (Transferencias Inmobiliarias e Inscripción de Hipoteca)"]
["Numeros de Recibos",null,null,null,"Monto RD$","Numeros de Recibos",null,null,null,"Monto RD$"]
[]
[]
[]
[]
["DATOS DE REFERENCIA (a ser completados por la Jurisdicción Inmobiliaria)"]
["Nombre y Firma de quien recibe:",null,null,null,null,"Fecha de recibo:",null,"Desglosado por:"]
[]
["(1) Sólo son aceptados como respaldo de este documento, los pagos realizados  en el Banco, ya sea en efectivo,  con  cheque certificado ó de Administración."]
["(2) Si el pago se hizo con cheque certificado ó de administración, es indispensable adicionar una fotocopia del cheque. En caso de no tener una fotocopia del cheque anexa, el expediente no será recibido por la Jurisdicción Inmobiliaria."]
["(3) Todo comprobante de pago tiene una vigencia máxima de ciento ochenta (180) días calendarios (6 meses) para su uso ó reembolso, contados a partir de la fecha del pago."]
["(4) La Jurisdicción Inmobiliaria se reserva el derecho de rechazar los comprobantes de pagos ilegibles, deteriorados y/o con signos de haber sido alterados."]
["(5) El signatario de esta solicitud es responsable de la veracidad de la información referente y de la autenticidad de los pagos incluidos.",null,null,null,null,null,null,null,null,"/02"]
["(6) En caso de reembolso por la no utilización del servicio, al valor de este se le retendrá un 0.5 % por concepto de trámites.",null,null,null,null,null,null,null,null,"TSF001-09"]

{"sheet":"Propuesto","index":1,"n_rows":75,"n_cols":26,"rows_kept":75,"cut":false,"hidden":false,"merged":[[75,0,75,8],[28,2,28,8],[10,2,10,6],[69,0,69,16383],[70,0,70,16383],[71,0,71,16383],[72,0,72,9],[73,0,73,8],[74,0,74,8],[64,0,64,3],[64,5,64,8],[65,0,65,3],[65,5,65,8],[66,0,66,9],[68,0,68,4],[68,5,68,6],[68,7,68,9],[59,7,59,8],[60,0,60,16383],[62,0,62,3],[62,5,62,8],[63,0,63,3],[63,5,63,8],[59,5,59,6],[51,0,51,8],[52,0,52,9],[53,5,53,6],[53,7,53,9],[54,0,54,3],[54,5,54,6],[54,7,58,9],[55,0,55,3],[55,5,55,6],[56,0,56,3],[56,5,56,6],[57,0,57,3],[57,5,57,6],[58,0,58,3],[58,5,58,6],[50,2,50,6],[40,2,40,6],[41,2,41,6],[42,2,42,6],[43,2,43,6],[44,2,44,6],[45,2,45,6],[46,2,46,6],[47,2,47,6],[48,2,48,6],[49,2,49,6],[39,2,39,6],[29,2,29,6],[30,2,30,6],[31,2,31,6],[32,2,32,6],[33,2,33,6],[34,2,34,6],[35,2,35,6],[36,2,36,6],[37,2,37,6],[38,2,38,6],[27,2,27,6],[16,2,16,6],[17,2,17,6],[18,2,18,6],[19,2,19,6],[20,2,20,6],[21,2,21,6],[22,2,22,6],[23,2,23,6],[24,2,24,6],[25,2,25,6],[26,2,26,6],[11,2,11,6],[12,2,12,6],[13,2,13,6],[14,2,14,6],[15,2,15,6],[9,0,9,9],[1,8,1,9],[2,0,2,9],[3,0,3,9],[4,0,4,9],[5,0,6,6],[5,7,5,9],[7,4,7,6],[7,7,7,9],[8,0,8,3],[8,4,8,6],[8,7,8,9]]}
[null,null,null,null,null,null,null,null,null,null,null,null,null,null,null,null,null,null,null,null,null,null,null,null,null,"FORMULARIO INVALIDO!! IMPRIMIR USANDO EL BOTON EN LA PARTE SUPERIOR DEL FORMULARIO"]
[]
[]
["PAGO DE TASAS / FORMULARIO DE DETALLE DE SERVICIOS"]
["DATOS DEL SOLICITANTE"]
[null,null,null,null,null,null,null,"Tipo de Identificación:"]
[null,null,null,null,null,null,null,null,"Cédula               Pasaporte           RNC"]
["Teléfono:",null,null,null,"Dirección Electrónica:",null,null,"Número de Identificación:"]
["(          )             -                         "]
["DETALLE DE LOS SERVICIOS SOLICITADOS"]
["Cantidad","Cod.","Servicio",null,null,null,null,"Exprés\n(x)","Tasa (RD$)","Monto a Pagar (Cantidad x Tasa)"]
[null,"001","Expedición de Duplicado por Pérdida del Anterior (PRIMERA SOLICITUD). ",null,null,null,null,null,4000,{"$f":"A12*I12","v":0}]
[null,"002","Expedición de Duplicado por Pérdida del Anterior (SOLICITUDES POSTERIORES).",null,null,null,null,null,6500,{"$f":"A13*I13","v":0}]
[null,"003","Expedición de Certificación con Reserva de Prioridad.",null,null,null,null,null,5000,0]
[null,"004","Expedición de Certificación de Estatus Jurídico y Certificación de Inscripción.",null,null,null,null,null,1000]
[null,"005","Expedición de Certificación de Derechos Reales Accesorios.",null,null,null,null,null,1000,0]
[null,"006","Expedición de Certificación de Registro de Acreedores, (PRIMERA SOLICITUD).",null,null,null,null,null,1000,0]
[null,"007","Expedición de Certificación de Registro de Acreedores, (SOLICITUDES POSTERIORES).",null,null,null,null,null,4000,0]
[null,"008","Expedición de Certificación de Derechos de Propiedad Vigentes.",null,null,null,null,null,4000]
[null,"009","Expedición de Certificación para Actualización Parcelaria y Registral.",null,null,null,null,null,4000,0]
[null,"010","Uso de Datos para Georreferenciación / REP, por cada designación catastral resultante involucrada en el expediente.",null,null,null,null,null,1000]
[null,"011","Inspección.",null,null,null,null,null,3000]
[null,"012","Representación Digital de Parcelas Históricas  (por parcela o plano).",null,null,null,null,null,500]
[null,"013","Impresión documentos Unidad de Consultas (por cada plano 24” x 36”)  (De 1 a 3 planos 11” x 17”) (De 1 a 10 págs. o planos 8 ½” x11”).",null,null,null,null,null,100]
[null,"014","Entrega de Copias Digitales en Unidad de Consultas (por documento o expediente; aplica para planos).",null,null,null,null,null,400]
[null,"015","Depósito Remoto (Distrito Nacional-Santo Domingo).",null,null,null,null,null,300]
[null,"016","Depósito Remoto (Distrito Nacional-Localidades).",null,null,null,null,null,800]
[null,"017","Depósito Ingresos JI/Completivo pago de tasa/Ventanilla Exprés Jurisdicción Inmobiliaria.",null,null,null,null,null,"(Tasa libre)"]
[null,"018","Otras Actuaciones de Registro de Títulos:"]
[null,"018","1. Cancelación Hipoteca Convencional.",null,null,null,null,null,1000]
[null,"018","2. Consolidación de Constancias Anotadas.",null,null,null,null,null,1000]
[null,"018","3. Aporte en Naturaleza a Sociedades, Empresas o Entidades.",null,null,null,null,null,1000]
[null,"018","4. Mandamiento de Pago en virtud de La Ley 6186.",null,null,null,null,null,1000]
[null,"018","5. Mandamiento de Pago.",null,null,null,null,null,1000]
[null,"018","6. Hipoteca Judicial Provisional.",null,null,null,null,null,1000]
[null,"018","7. Servidumbre que afecta parte de un Inmueble.",null,null,null,null,null,1000]
[null,"018","8. Anotación Preventiva.",null,null,null,null,null,1000]
[null,"018","9. Adjudicación",null,null,null,null,null,1000]
[null,"018","10. Mandamiento de Pago en virtud de La Ley 189-11.",null,null,null,null,null,1000]
[null,"018","11. Cancelación de Embargo.",null,null,null,null,null,1000]
[null,"018","12.  Hipoteca Legal de la Mujer Casada.",null,null,null,null,null,1000]
[null,"018","13. Constitución de Régimen de Condominio y de Condominios en Fases o Etapas.",null,null,null,null,null,1000]
[null,"018","14. Modificación del Régimen de Condominio y de Condominios en Fases o Etapas.",null,null,null,null,null,1000]
[null,"018","15. Cambio de Denominación o Transformación Social",null,null,null,null,null,1000]
[null,"018","16. Cancelación de Anotación Preventiva.",null,null,null,null,null,1000]
[null,"018","17. Disolución o Extinción del Régimen de Condominio y de Condominios en Fases o Etapas.",null,null,null,null,null,1000]
[null,"018","18. Cancelación de Hipoteca Legal de la Mujer Casada",null,null,null,null,null,1000]
[null,"018","19. Canje Registral.",null,null,null,null,null,1000]
[null,"018","20. Hipoteca sobre Derecho de Mejoras",null,null,null,null,null,1000]
[null,"018","21. Rectificación de Registros Relativos al Estado Civil.",null,null,null,null,null,1000]
[null,"018","22. Transferencia de Mejoras.",null,null,null,null,null,1000]
["MONTO TOTAL A PAGAR",null,null,null,null,null,null,null,null,{"$f":"SUM(J12:J51)","v":0}]
["DETALLE DE LOS PAGOS ANEXOS"]
["Número Comprobantes(s) de Pago",null,null,null,"Cheque Certificado/ Adm (Número y Banco)","Monto Pagado",null,"Detalles para el Pago"]
[null,null,null,null,null,null,null,"Favor realizar los pagos de tasa por servicios de la Jurisdicción Inmobiliaria a través del Banco de Reservas."]
[]
[null,null,null,null,null,null,null,null,null,null,null,null,{"$f":"IF(A55<>\"\",1,0)","v":0}]
[null,null,null,null,null,null,null,null,null,null,null,null,null,"010-251501-8"]
[null,null,null,null,null,null,null,null,null,null,null,null,{"$f":"IF(A57<>\"\",1,0)","v":0}]
[null,null,null,null,"MONTO TOTAL PAGADO",{"$f":"SUM(F55:F59)","v":0},null,"CANTIDAD DE PAGOS",null,{"$f":"COUNT(F55:G59)","v":0},null,null,{"$f":"IF(A58<>\"\",1,0)","v":0}]
["DATOS RECIBOS DGII (Transferencias Inmobiliarias e Inscripción de Hipoteca)"]
["Numeros de Recibos",null,null,null,"Monto RD$","Numeros de Recibos",null,null,null,"Monto RD$"]
[]
[]
[]
[]
["DATOS DE REFERENCIA (a ser completados por la Jurisdicción Inmobiliaria)"]
["Nombre y Firma de quien recibe:",null,null,null,null,"Fecha de recibo:",null,"Desglosado por:"]
[]
["(1) Sólo son aceptados como respaldo de este documento, los pagos realizados  en el Banco, ya sea en efectivo,  con  cheque certificado ó de Administración."]
["(2) Si el pago se hizo con cheque certificado ó de administración, es indispensable adicionar una fotocopia del cheque. En caso de no tener una fotocopia del cheque anexa, el expediente no será recibido por la Jurisdicción Inmobiliaria."]
["(3) Todo comprobante de pago tiene una vigencia máxima de ciento ochenta (180) días calendarios (6 meses) para su uso ó reembolso, contados a partir de la fecha del pago."]
["(4) La Jurisdicción Inmobiliaria se reserva el derecho de rechazar los comprobantes de pagos ilegibles, deteriorados y/o con signos de haber sido alterados."]
["(5) El signatario de esta solicitud es responsable de la veracidad de la información referente y de la autenticidad de los pagos incluidos.",null,null,null,null,null,null,null,null,"/03"]
["(6) En caso de reembolso por la no utilización del servicio, al valor de este se le retendrá un 0.5 % por concepto de trámites.",null,null,null,null,null,null,null,null,"TSF001-09"]

{"sheet":"Sheet3","index":2,"n_rows":46,"n_cols":11,"rows_kept":46,"cut":false,"hidden":false,"merged":[[4,1,4,6]]}
[]
[]
[]
[null,null,null,null,null,null,{"$f":"+COUNTA(G6:G46)","v":16}]
[null,"Servicio",null,null,null,null,null,"Tasa (RD$)"]
[null,"Expedición de Duplicado por Pérdida del Anterior (PRIMERA SOLICITUD). ",null,null,null,null,"VE x2",4000]
[null,"Expedición de Duplicado por Pérdida del Anterior (SOLICITUDES POSTERIORES).",null,null,null,null,"VE x2",6500]
[null,"Expedición de Certificación con Reserva de Prioridad.",null,null,null,null,"VE x2",5000]
[null,"Expedición de Certificación de Estatus Jurídico y Certificación de Inscripción.",null,null,null,null,"VE x2",1000]
[null,"Expedición de Certificación de Derechos Reales Accesorios.",null,null,null,null,"VE x2",1000]
[null,"Expedición de Certificación de Registro de Acreedores, (PRIMERA SOLICITUD).",null,null,null,null,"VE x2",1000]
[null,"Expedición de Certificación de Registro de Acreedores, (SOLICITUDES POSTERIORES).",null,null,null,null,"VE x2",4000]
[null,"Expedición de Certificación de Derechos de Propiedad Vigentes.",null,null,null,null,"VE x2",1000]
[null,"Expedición de Certificación para Actualización Parcelaria y Registral.",null,null,null,null,null,4000]
[null,"Uso de Datos para Georreferenciación / REP, por cada designación catastral resultante involucrada en el expediente.",null,null,null,null,null,4000]
[null,"Inspección.",null,null,null,null,null,3000,null,null,"√"]
[null,"Representación Digital de Parcelas Históricas  (por parcela o plano).",null,null,null,null,null,500]
[null,"Impresión documentos Unidad de Consultas (por cada plano 24” x 36”)  (De 1 a 3 planos 11” x 17”) (De 1 a 10 págs. o planos 8 ½” x11”).",null,null,null,null,null,100]
[null,"Entrega de Copias Digitales en Unidad de Consultas (por documento o expediente; aplica para planos).",null,null,null,null,null,400]
[null,"Depósito Remoto (Distrito Nacional-Santo Domingo).",null,null,null,null,null,300]
[null,"Depósito Remoto (Distrito Nacional-Localidades).",null,null,null,null,null,800]
[null,"Depósito Ingresos JI/Completivo pago de tasa/Ventanilla Exprés Jurisdicción Inmobiliaria.",null,null,null,null,null,"(Tasa libre)"]
[null,"Otras Actuaciones de Registro de Títulos:"]
[null,"1. Adjudicación.",null,null,null,null,null,1000]
[null,"2. Anotación Preventiva.",null,null,null,null,null,1000]
[null,"3. Aporte en Naturaleza a Sociedades, Empresas o Entidades.",null,null,null,null,null,1000]
[null,"4. Cambio de Denominación o Transformación Social.",null,null,null,null,null,1000]
[null,"5. Cancelación de Anotación Preventiva.",null,null,null,null,"VE x2",1000]
[null,"6. Cancelación de Embargo.",null,null,null,null,"VE x2",1000]
[null,"7. Cancelación de la Hipoteca Legal de la Mujer Casada.",null,null,null,null,"VE x2",1000]
[null,"8. Cancelación Hipoteca Convencional.",null,null,null,null,"VE x2",1000]
[null,"9. Canje Registral.",null,null,null,null,"VE x2",1000]
[null,"10. Consolidación de Constancias Anotadas.",null,null,null,null,"VE x2",1000]
[null,"11. Constitución de Régimen de Condominio y de Condominios en Fases o Etapas.",null,null,null,null,"VE x2",1000]
[null,"12. Disolución o Extinción del Régimen de Condominio y de Condominios en Fases o Etapas.",null,null,null,null,"VE x2",1000]
[null,"13. Hipoteca Judicial Provisional.",null,null,null,null,null,1000]
[null,"14. Hipoteca Legal de la Mujer Casada.",null,null,null,null,null,1000]
[null,"15. Hipoteca sobre Derecho de Mejoras.",null,null,null,null,null,1000]
[null,"16. Mandamiento de Pago en virtud de La Ley 189-11.",null,null,null,null,null,1000]
[null,"17. Mandamiento de Pago en virtud de La Ley 6186.",null,null,null,null,null,1000]
[null,"18. Mandamiento de Pago.",null,null,null,null,null,1000]
[null,"19. Modificación del Régimen de Condominio y de Condominios en Fases o Etapas.",null,null,null,null,null,1000]
[null,"20. Rectificación de Registros Relativos al Estado Civil.",null,null,null,null,null,1000]
[null,"21. Servidumbre que afecta parte de un Inmueble.",null,null,null,null,null,1000]
[null,"22. Transferencias.",null,null,null,null,null,1000]
[null,"23. Transferencia de Mejoras.",null,null,null,null,null,1000]

{"sheet":"Sheet2","index":3,"n_rows":5,"n_cols":3,"rows_kept":5,"cut":false,"hidden":true,"merged":[[3,1,3,3]]}
[]
[]
[]
["Cuenta","010-251472-0"]
["Codigo de origen","/o1","1 web, 2 CENAU, 3 Organo JI, 4 Preimpreso"]